fUSD/lending_fUSD_20250211
["ID","MTS","AMOUNT","RATE_DAILY","PERIOD"]
[352775688,1739304305024,-500.0,8.973e-05,2]
[352775690,1739304519645,-1500.0,8.973e-05,2]
[352775699,1739304632050,-282.501,8.973e-05,2]
[352775700,1739304632060,-500.0,9.87e-05,2]
[352775701,1739304632070,-482.56,0.00010137,2]
[352775702,1739304632079,-500.0,0.00010364,2]
[352775703,1739304632088,-555.32005062,0.00010781,7]
[352775704,1739304632097,-851.8578546,0.00010781,7]
[352775705,1739304632107,-2000.0,0.0001178,2]
[352775706,1739304632116,-1000.0,0.00012054,2]
[352775707,1739304632125,-343.08,0.00013,2]
[352775708,1739304632134,-550.0,0.00013,2]
[352775709,1739304632143,-165.91,0.00013699,2]
[352775710,1739304632154,-703.07,0.0001498,2]
[352775711,1739304632163,-600.0,0.00015,2]
[352775712,1739304632172,-500.0,0.00015164,2]
[352775713,1739304632182,-500.0,0.00015164,2]
[352775714,1739304632192,-181.09094,0.0001521,3]
[352775715,1739304632206,-612.11987055,0.00015777,2]
[352775716,1739304632215,-9064.97771514,0.00016,2]
[352775717,1739304632225,-150.0,0.00016106,2]
[352775718,1739304632234,-3914.0,0.00016106,2]
[352775719,1739304632243,-407.08123219,0.00016179,2]
[352775720,1739304632252,-250.0,0.0001622,2]
[352775721,1739304632261,-9990.0,0.00016304,2]
[352775722,1739304632270,-441.89,0.0001636,2]
[352775723,1739304632279,-1000.0,0.00016371,2]
[352775724,1739304632288,-301.1,0.00016406,2]
[352775725,1739304632298,-1681.21418,0.0001641,2]
[352775726,1739304632307,-150.0,0.00016436,2]
[352775727,1739304632317,-170.54590982,0.00016438,2]
[352775728,1739304632326,-500.0,0.00016438,2]
[352775729,1739304632336,-500.0,0.00016438,2]
[352775730,1739304632346,-500.0,0.00016438,2]
[352775731,1739304632355,-298.12681818,0.00016438,2]
[352775732,1739304632364,-500.0,0.00016438,2]
[352775733,1739304632375,-500.0,0.00016438,2]
[352775734,1739304632390,-500.0,0.00016438,2]
[352775735,1739304632402,-500.0,0.00016438,2]
[352775736,1739304632412,-500.0,0.00016438,2]
[352775737,1739304632421,-500.0,0.00016438,2]
[352775739,1739304632430,-500.0,0.00016438,2]
[352775741,1739304632440,-500.0,0.00016438,2]
[352775742,1739304632451,-500.0,0.00016438,2]
[352775743,1739304632460,-500.0,0.00016438,2]
[352775744,1739304632469,-157.34658999,0.00016438,7]
[352775745,1739304632479,-500.0,0.00016438,2]
[352775747,1739304632487,-500.0,0.00016438,2]
[352775749,1739304632497,-500.0,0.00016438,2]
[352775751,1739304632506,-500.0,0.00016438,2]
[352775753,1739304632515,-500.0,0.00016438,2]
[352775755,1739304632525,-500.0,0.00016438,2]
[352775757,1739304632534,-500.0,0.00016438,2]
[352775759,1739304632543,-501.29654235,0.00016438,2]
[352775761,1739304632552,-500.0,0.00016438,2]
[352775763,1739304632561,-241.4980508,0.00016438,2]
[352775765,1739304632570,-500.0,0.00016438,2]
[352775767,1739304632579,-500.0,0.00016438,2]
[352775769,1739304632588,-416.6673528,0.00016438,2]
[352775771,1739304632597,-573.14,0.00016438,2]
[352775773,1739304632606,-500.0,0.00016438,2]
[352775775,1739304632615,-500.0,0.00016438,2]
[352775777,1739304632625,-500.0,0.00016438,2]
[352775778,1739304632634,-500.0,0.00016438,2]
[352775780,1739304632643,-500.0,0.00016438,2]
[352775782,1739304632654,-500.0,0.00016438,2]
[352775785,1739304632663,-304.93695175,0.00016438,2]
[352775786,1739304632672,-500.0,0.00016438,2]
[352775788,1739304632682,-500.0,0.00016438,2]
[352775791,1739304632691,-500.0,0.00016438,2]
[352775792,1739304632700,-500.0,0.00016438,2]
[352775795,1739304632710,-500.0,0.00016438,2]
[352775797,1739304632719,-500.0,0.00016438,2]
[352775798,1739304632728,-389.44453693,0.00016438,2]
[352775800,1739304632738,-153.29444551,0.00016438,2]
[352775803,1739304632747,-500.0,0.00016438,2]
[352775805,1739304632756,-500.0,0.00016438,2]
[352775806,1739304632765,-500.0,0.00016438,2]
[352775808,1739304632775,-500.0,0.00016438,2]
[352775828,1739304632953,-500.0,0.00016438,2]
[352775830,1739304632964,-500.0,0.00016438,2]
[352775832,1739304632973,-500.0,0.00016438,2]
[352775835,1739304632992,-500.0,0.00016438,2]
[352775838,1739304633003,-500.0,0.00016438,2]
[352775840,1739304633013,-500.0,0.00016438,2]
[352775842,1739304633023,-500.0,0.00016438,2]
[352775844,1739304633032,-500.0,0.00016438,2]
[352775846,1739304633042,-511.28031062,0.00016438,2]
[352775848,1739304633052,-500.0,0.00016438,2]
[352775850,1739304633062,-500.0,0.00016438,2]
[352775852,1739304633072,-500.0,0.00016438,2]
[352775854,1739304633082,-500.0,0.00016438,2]
[352775856,1739304633092,-1.68527125,0.00016438,2]
[352775874,1739304633261,-498.31472875,0.00016438,2]
[352775876,1739304633271,-321.8382289,0.00016438,2]
[352775879,1739304633291,-178.1617711,0.00016438,2]
[352775881,1739304633300,-500.0,0.00016438,2]
[352775883,1739304633311,-500.0,0.00016438,2]
[352775885,1739304633320,-500.0,0.00016438,2]
[352775887,1739304633330,-500.0,0.00016438,2]
[352775889,1739304633340,-500.0,0.00016438,2]
[352775891,1739304633349,-588.68,0.00016438,2]
[352775893,1739304633358,-500.0,0.00016438,2]
[352775895,1739304633367,-500.0,0.00016438,2]
[352775897,1739304633377,-500.0,0.00016438,2]
[352775899,1739304633387,-500.0,0.00016438,2]
[352775901,1739304633396,-500.0,0.00016438,2]
[352775903,1739304633406,-500.0,0.00016438,2]
[352775905,1739304633415,-500.0,0.00016438,2]
[352775907,1739304633425,-500.0,0.00016438,2]
[352775909,1739304633435,-500.0,0.00016438,2]
[352775912,1739304633445,-500.0,0.00016438,2]
[352775913,1739304633455,-500.0,0.00016438,2]
[352775915,1739304633464,-500.0,0.00016438,2]
[352775917,1739304633474,-241.84533419,0.00016438,2]
[352775919,1739304633483,-38.3655331,0.00016438,2]
[352775923,1739304633503,-461.6344669,0.00016438,2]
[352775925,1739304633513,-500.0,0.00016438,2]
[352775927,1739304633522,-500.0,0.00016438,2]
[352775929,1739304633532,-500.0,0.00016438,2]
[352775931,1739304633540,-500.0,0.00016438,2]
[352775933,1739304633550,-500.0,0.00016438,2]
[352775935,1739304633559,-500.0,0.00016438,2]
[352775937,1739304633568,-500.0,0.00016438,2]
[352775939,1739304633577,-500.0,0.00016438,2]
[352775940,1739304633587,-500.0,0.00016438,2]
[352775942,1739304633596,-500.0,0.00016438,2]
[352775944,1739304633606,-500.0,0.00016438,2]
[352775947,1739304633617,-500.0,0.00016438,2]
[352775948,1739304633627,-500.0,0.00016438,2]
[352775950,1739304633637,-512.91,0.00016438,2]
[352775952,1739304633646,-507.46,0.00016438,2]
[352775954,1739304633656,-500.0,0.00016438,2]
[352775956,1739304633666,-500.0,0.00016438,2]
[352775958,1739304633675,-500.0,0.00016438,2]
[352775960,1739304633685,-181.87184824,0.00016438,2]
[352775962,1739304633694,-500.0,0.00016438,2]
[352775964,1739304633704,-1000.0,0.00016472,2]
[352775966,1739304633714,-284.19105783,0.000165,2]
[352775968,1739304633725,-155.24220292,0.000165,2]
[352775970,1739304633735,-200.0,0.00016575,2]
[352775972,1739304633744,-500.0,0.00016575,2]
[352775974,1739304633753,-500.0,0.00016575,2]
[352775976,1739304633763,-541.7,0.00016575,2]
[352775978,1739304633773,-500.0,0.00016575,2]
[352775980,1739304633783,-500.0,0.00016575,2]
[352775982,1739304633792,-574.99,0.0001669,30]
[352775984,1739304633802,-500.0,0.00016712,2]
[352775986,1739304633812,-500.0,0.00016712,2]
[352775988,1739304633821,-200.0,0.00016741,2]
[352775990,1739304633831,-175.749,0.00016761,2]
[352775992,1739304633840,-2773.976,0.00016761,2]
[352775994,1739304633850,-4731.0,0.000168,3]
[352775996,1739304633860,-482.56,0.00016813,2]
[352775998,1739304633873,-150.0,0.00016827,2]
[352776000,1739304633883,-500.0,0.00016849,2]
[352776003,1739304633892,-500.0,0.00016849,2]
[352776005,1739304633903,-904.47,0.00016899,2]
[352776007,1739304633912,-200.0,0.00016908,2]
[352776009,1739304633922,-1380.8,0.00016955,2]
[352776010,1739304633932,-500.0,0.00016986,2]
[352776013,1739304633943,-334.46,0.00016986,2]
[352776015,1739304633954,-650.0,0.00017,2]
[352776017,1739304633964,-168.43,0.00017087,2]
[352776019,1739304633974,-181.09094,0.00017093,5]
[352776020,1739304633984,-159.41,0.000171,2]
[352776022,1739304633993,-200.0,0.00017115,2]
[352776025,1739304634004,-1798.25,0.00017119,2]
[352776026,1739304634014,-500.0,0.00017123,2]
[352776028,1739304634024,-703.07,0.00017243,2]
[352776030,1739304634034,-534.30373843,0.0001726,2]
[352776032,1739304634044,-4436.56559484,0.00017296,2]
[352776034,1739304634053,-152.0,0.00017296,3]
[352776036,1739304634063,-1029.26,0.000173,7]
[352776038,1739304634073,-1127.57,0.00017353,2]
[352776040,1739304634083,-150.0,0.00017359,2]
[352776042,1739304634093,-150.0,0.00017359,2]
[352776044,1739304634103,-150.0,0.00017359,2]
[352776047,1739304634113,-150.0,0.00017359,2]
[352776048,1739304634122,-150.0,0.00017359,2]
[352776050,1739304634132,-2000.0,0.00017379,2]
[352776053,1739304634141,-401.25,0.00017396,2]
[352776054,1739304634154,-300.22,0.00017403,2]
[352776057,1739304634164,-150.0,0.00017425,2]
[352776059,1739304634174,-150.0,0.00017492,2]
[352776061,1739304634184,-150.0,0.00017497,2]
[352776062,1739304634193,-150.0,0.00017558,2]
[352776064,1739304634203,-439.73,0.00017562,2]
[352776066,1739304634214,-1195.83,0.00017562,2]
[352776068,1739304634224,-4436.56559482,0.00017585,2]
[352776070,1739304634233,-150.0,0.000176,2]
[352776072,1739304634242,-1254.0,0.000176,2]
[352776074,1739304634252,-150.0,0.00017625,2]
[352776076,1739304634261,-150.0,0.00017634,2]
[352776078,1739304634271,-150.0,0.00017691,2]
[352776080,1739304634280,-1710.68,0.00017728,5]
[352776082,1739304634290,-1231.53,0.00017728,2]
[352776084,1739304634299,-150.0,0.00017758,2]
[352776086,1739304634308,-150.0,0.00017772,2]
[352776088,1739304634317,-255.65564224,0.0001781,2]
[352776090,1739304634326,-150.0,0.00017824,2]
[352776092,1739304634335,-150.0,0.00017841,2]
[352776094,1739304634345,-4436.56559482,0.00017875,2]
[352776096,1739304634354,-150.0,0.00017891,2]
[352776098,1739304634364,-500.0,0.00017904,2]
[352776101,1739304634374,-500.0,0.00017904,2]
[352776102,1739304634384,-255.65564208,0.00017904,2]
[352776104,1739304634393,-150.0,0.0001791,2]
[352776106,1739304634404,-150.0,0.00017957,2]
[352776108,1739304634414,-150.0,0.00017973,2]
[352776110,1739304634424,-255.65564208,0.00017998,2]
[352776112,1739304634433,-508.664456,0.00018,2]
[352776114,1739304634443,-150.0,0.00018024,2]
[352776116,1739304634453,-150.0,0.00018048,2]
[352776118,1739304634463,-150.0,0.00018082,2]
[352776120,1739304634472,-2000.0,0.00018082,2]
[352776122,1739304634481,-200.0,0.00018082,2]
[352776124,1739304634491,-150.0,0.00018091,2]
[352776126,1739304634501,-255.65564208,0.00018093,2]
[352776128,1739304634511,-150.0,0.00018157,2]
[352776130,1739304634521,-4436.56559482,0.00018164,2]
[352776132,1739304634531,-150.0,0.00018186,2]
[352776134,1739304634540,-255.65564208,0.00018187,2]
[352776137,1739304634550,-150.0,0.00018224,2]
[352776138,1739304634560,-255.65564208,0.00018281,2]
[352776140,1739304634569,-150.0,0.0001829,2]
[352776141,1739304634579,-150.0,0.00018323,2]
[352776142,1739304634588,-150.0,0.00018323,2]
[352776143,1739304634597,-150.0,0.00018323,2]
[352776144,1739304634606,-150.0,0.00018357,2]
[352776145,1739304634616,-255.65564208,0.00018375,2]
[352776146,1739304634624,-441.89,0.00018405,2]
[352776147,1739304634634,-1000.0,0.00018417,2]
[352776148,1739304634643,-150.0,0.00018423,2]
[352776149,1739304634653,-4436.56559482,0.00018453,2]
[352776150,1739304634662,-150.0,0.00018461,2]
[352776151,1739304634670,-255.65564208,0.00018469,2]
[352776152,1739304634679,-150.0,0.0001849,2]
[352776153,1739304634688,-150.0,0.00018556,2]
[352776154,1739304634697,-255.65564208,0.00018564,2]
[352776155,1739304634706,-150.0,0.00018564,2]
[352776156,1739304634715,-150.0,0.00018599,2]
[352776158,1739304634724,-154.55,0.000186,2]
[352776160,1739304634734,-154.55,0.000186,2]
[352776162,1739304634744,-396.7414017,0.0001862,2]
[352776164,1739304634753,-150.0,0.00018623,2]
[352776166,1739304634762,-245592.49605269,0.0001865,2]
[352776168,1739304634772,-255.65564208,0.00018658,2]
[352776170,1739304634782,-150.0,0.00018689,2]
[352776172,1739304634791,-150.0,0.00018726,2]
[352776174,1739304634801,-150.0,0.0001873,2]
[352776176,1739304634811,-150.0,0.00018737,2]
[352776178,1739304634820,-4436.56559482,0.00018743,2]
[352776180,1739304634829,-2000.0,0.00018751,2]
[352776182,1739304634839,-255.65564208,0.00018752,2]
[352776184,1739304634848,-150.0,0.00018755,2]
[352776186,1739304634857,-150.0,0.00018756,2]
[352776188,1739304634867,-150.0,0.00018776,2]
[352776190,1739304634879,-150.0,0.0001878,2]
[352776191,1739304634889,-150.0,0.00018794,2]
[352776193,1739304634899,-150.0,0.000188,2]
[352776195,1739304634908,-215.21,0.00018802,2]
[352776197,1739304634918,-150.0,0.00018805,2]
[352776199,1739304634928,-150.0,0.00018822,2]
[352776201,1739304634937,-2735.0,0.00018826,2]
[352776203,1739304634947,-1000.0,0.00018834,2]
[352776205,1739304634957,-325.82006708,0.0001884,14]
[352776207,1739304634967,-500.0,0.00018844,2]
[352776209,1739304634976,-255.65564208,0.00018846,2]
[352776211,1739304634986,-325.82006708,0.00018859,14]
[352776213,1739304634995,-150.0,0.00018863,2]
[352776215,1739304635004,-150.0,0.00018874,2]
[352776217,1739304635015,-325.82006708,0.00018876,14]
[352776219,1739304635025,-150.0,0.0001888,2]
[352776221,1739304635035,-150.0,0.00018884,2]
[352776223,1739304635046,-150.0,0.00018888,2]
[352776225,1739304635055,-150.0,0.00018889,2]
[352776227,1739304635064,-500.0,0.00018896,2]
[352776229,1739304635074,-500.0,0.00018896,2]
[352776231,1739304635083,-500.0,0.00018896,2]
[352776233,1739304635093,-381.98,0.00018896,2]
[352776235,1739304635102,-500.0,0.00018896,2]
[352776237,1739304635112,-500.0,0.00018896,2]
[352776239,1739304635121,-500.0,0.00018896,2]
[352776241,1739304635131,-500.0,0.00018896,2]
[352776243,1739304635140,-500.0,0.00018896,2]
[352776245,1739304635151,-297.1,0.00018896,2]
[352776248,1739304635161,-500.0,0.00018896,2]
[352776250,1739304635170,-500.0,0.00018896,2]
[352776251,1739304635179,-500.0,0.00018896,2]
[352776253,1739304635189,-366.21083101,0.00018896,2]
[352776256,1739304635198,-500.0,0.00018896,2]
[352776258,1739304635208,-500.0,0.00018896,2]
[352776259,1739304635217,-171.24,0.00018896,2]
[352776261,1739304635226,-500.0,0.00018896,2]
[352776264,1739304635235,-500.0,0.00018896,2]
[352776265,1739304635245,-500.0,0.00018896,2]
[352776267,1739304635254,-500.0,0.00018896,2]
[352776269,1739304635264,-500.0,0.00018896,2]
[352776271,1739304635273,-500.0,0.00018896,2]
[352776273,1739304635282,-500.0,0.00018896,2]
[352776275,1739304635291,-500.0,0.00018896,2]
[352776278,1739304635301,-500.0,0.00018896,2]
[352776279,1739304635313,-500.0,0.00018896,2]
[352776281,1739304635322,-500.0,0.00018896,2]
[352776284,1739304635332,-500.0,0.00018896,2]
[352776286,1739304635343,-500.0,0.00018896,2]
[352776288,1739304635352,-500.0,0.00018896,2]
[352776290,1739304635361,-500.0,0.00018896,2]
[352776292,1739304635370,-500.0,0.00018896,2]
[352776294,1739304635379,-500.0,0.00018896,2]
[352776296,1739304635389,-500.0,0.00018896,2]
[352776298,1739304635398,-500.0,0.00018896,2]
[352776299,1739304635407,-500.0,0.00018896,2]
[352776301,1739304635416,-500.0,0.00018896,2]
[352776304,1739304635426,-500.0,0.00018896,2]
[352776305,1739304635435,-500.0,0.00018896,2]
[352776307,1739304635445,-500.0,0.00018896,2]
[352776309,1739304635454,-500.0,0.00018896,2]
[352776311,1739304635464,-500.0,0.00018896,2]
[352776314,1739304635475,-1095.56,0.00018896,2]
[352776316,1739304635484,-500.0,0.00018896,2]
[352776317,1739304635494,-2423.19957,0.00018896,2]
[352776319,1739304635503,-580.46,0.00018896,2]
[352776322,1739304635512,-160.99916,0.00018896,2]
[352776323,1739304635522,-500.0,0.00018896,2]
[352776325,1739304635531,-155.834979,0.00018896,2]
[352776327,1739304635540,-500.0,0.00018896,2]
[352776329,1739304635550,-500.0,0.00018896,2]
[352776331,1739304635559,-500.0,0.00018896,2]
[352776333,1739304635567,-500.0,0.00018896,2]
[352776335,1739304635577,-500.0,0.00018897,2]
[352776337,1739304635586,-500.0,0.00018897,2]
[352776339,1739304635596,-500.0,0.00018897,2]
[352776341,1739304635605,-500.0,0.00018897,2]
[352776343,1739304635614,-500.0,0.00018897,2]
[352776345,1739304635623,-500.0,0.00018897,2]
[352776347,1739304635632,-500.0,0.00018897,2]
[352776349,1739304635641,-500.0,0.00018897,2]
[352776351,1739304635650,-500.0,0.00018897,2]
[352776353,1739304635659,-500.0,0.00018897,2]
[352776355,1739304635668,-500.0,0.00018897,2]
[352776357,1739304635677,-500.0,0.00018897,2]
[352776359,1739304635686,-500.0,0.00018897,2]
[352776361,1739304635696,-500.0,0.00018897,2]
[352776363,1739304635705,-500.0,0.00018897,2]
[352776365,1739304635715,-500.0,0.00018897,2]
[352776367,1739304635724,-500.0,0.00018897,2]
[352776369,1739304635734,-500.0,0.00018897,2]
[352776371,1739304635743,-500.0,0.00018897,2]
[352776373,1739304635753,-500.0,0.00018897,2]
[352776375,1739304635763,-500.0,0.00018897,2]
[352776377,1739304635773,-500.84232981,0.00018897,2]
[352776379,1739304635784,-500.0,0.00018897,2]
[352776381,1739304635794,-500.0,0.00018897,2]
[352776383,1739304635804,-500.0,0.00018897,2]
[352776385,1739304635815,-502.23192998,0.00018897,2]
[352776387,1739304635826,-500.0,0.00018897,2]
[352776389,1739304635835,-500.0,0.00018897,2]
[352776391,1739304635845,-500.0,0.00018897,2]
[352776393,1739304635855,-504.68809972,0.00018897,2]
[352776395,1739304635865,-504.47496603,0.00018897,2]
[352776397,1739304635878,-500.0,0.00018897,2]
[352776399,1739304635888,-500.0,0.00018897,2]
[352776401,1739304635897,-500.0,0.00018897,2]
[352776403,1739304635910,-500.0,0.00018897,2]
[352776405,1739304635920,-500.0,0.00018897,2]
[352776407,1739304635930,-500.0,0.00018897,2]
[352776409,1739304635941,-500.0,0.00018897,2]
[352776411,1739304635952,-500.0,0.00018897,2]
[352776413,1739304635962,-1944.60908,0.00018897,2]
[352776415,1739304635972,-500.0,0.00018897,2]
[352776417,1739304635983,-500.0,0.00018897,2]
[352776419,1739304635994,-500.0,0.00018897,2]
[352776421,1739304636004,-500.0,0.00018897,2]
[352776423,1739304636014,-500.0,0.00018897,2]
[352776425,1739304636024,-500.0,0.00018897,2]
[352776427,1739304636033,-500.0,0.00018897,2]
[352776429,1739304636043,-500.0,0.00018897,2]
[352776431,1739304636052,-566.00672339,0.00018897,2]
[352776433,1739304636064,-500.0,0.00018897,2]
[352776435,1739304636073,-500.0,0.00018897,2]
[352776437,1739304636083,-500.0,0.00018897,2]
[352776439,1739304636094,-500.0,0.00018897,2]
[352776441,1739304636103,-500.0,0.00018897,2]
[352776443,1739304636113,-500.0,0.00018897,2]
[352776445,1739304636123,-500.0,0.00018897,2]
[352776447,1739304636132,-92.67513022,0.00018897,2]
[352776643,1739304637910,-489.92007565,0.00018896,2]
[352776655,1739304637965,-10.07992435,0.00018896,2]
[352776658,1739304637976,-407.32486978,0.00018897,2]
[352776660,1739304637986,-500.0,0.00018897,2]
[352776662,1739304637996,-500.0,0.00018897,2]
[352776664,1739304638005,-500.0,0.00018897,2]
[352776666,1739304638014,-500.0,0.00018897,2]
[352776668,1739304638023,-500.0,0.00018897,2]
[352776670,1739304638033,-500.0,0.00018897,2]
[352776672,1739304638042,-500.0,0.00018897,2]
[352776674,1739304638052,-500.0,0.00018897,2]
[352776676,1739304638061,-500.0,0.00018897,2]
[352776678,1739304638070,-500.0,0.00018897,2]
[352776680,1739304638080,-518.07094682,0.00018897,2]
[352776682,1739304638088,-500.0,0.00018897,2]
[352776684,1739304638098,-500.0,0.00018897,2]
[352776686,1739304638107,-567.07016017,0.00018897,2]
[352776688,1739304638116,-540.75,0.00018897,2]
[352776690,1739304638125,-500.0,0.00018897,2]
[352776692,1739304638134,-500.0,0.00018897,2]
[352776694,1739304638144,-500.0,0.00018897,2]
[352776696,1739304638153,-500.0,0.00018897,2]
[352776697,1739304638162,-500.0,0.00018897,2]
[352776698,1739304638171,-500.0,0.00018897,2]
[352776699,1739304638182,-500.0,0.00018897,2]
[352776700,1739304638191,-500.0,0.00018897,2]
[352776701,1739304638200,-500.0,0.00018897,2]
[352776702,1739304638209,-500.0,0.00018897,2]
[352776703,1739304638218,-1000.0,0.00018897,2]
[352776704,1739304638227,-500.0,0.00018897,2]
[352776705,1739304638236,-500.0,0.00018897,2]
[352776706,1739304638245,-500.0,0.00018897,2]
[352776707,1739304638254,-500.0,0.00018897,2]
[352776708,1739304638263,-1824.46,0.00018897,2]
[352776709,1739304638272,-500.0,0.00018897,2]
[352776711,1739304638282,-500.0,0.00018897,2]
[352776713,1739304638291,-500.0,0.00018897,2]
[352776715,1739304638301,-500.0,0.00018897,2]
[352776717,1739304638310,-500.0,0.00018897,2]
[352776719,1739304638319,-500.0,0.00018897,2]
[352776721,1739304638328,-500.0,0.00018897,2]
[352776723,1739304638338,-500.0,0.00018897,2]
[352776725,1739304638348,-571.1,0.00018897,2]
[352776727,1739304638357,-500.0,0.00018897,2]
[352776729,1739304638367,-500.0,0.00018897,2]
[352776731,1739304638376,-500.0,0.00018897,2]
[352776733,1739304638386,-208.71,0.00018897,2]
[352776735,1739304638395,-500.0,0.00018897,2]
[352776737,1739304638405,-500.0,0.00018897,2]
[352776739,1739304638414,-500.0,0.00018897,2]
[352776741,1739304638423,-500.0,0.00018897,2]
[352776743,1739304638432,-500.0,0.00018897,2]
[352776745,1739304638442,-500.0,0.00018897,2]
[352776747,1739304638452,-500.0,0.00018897,2]
[352776767,1739304638627,-500.0,0.00018897,2]
[352776769,1739304638637,-500.0,0.00018897,2]
[352776771,1739304638646,-500.0,0.00018897,2]
[352776773,1739304638656,-500.0,0.00018897,2]
[352776775,1739304638665,-500.0,0.00018897,2]
[352776777,1739304638674,-500.0,0.00018897,2]
[352776778,1739304638683,-538.94,0.00018897,2]
[352776780,1739304638693,-500.0,0.00018897,2]
[352776783,1739304638702,-500.0,0.00018897,2]
[352776785,1739304638712,-500.0,0.00018897,2]
[352776787,1739304638722,-500.0,0.00018897,2]
[352776789,1739304638731,-500.0,0.00018897,2]
[352776791,1739304638741,-500.0,0.00018897,2]
[352776793,1739304638750,-500.0,0.00018897,2]
[352776795,1739304638762,-500.0,0.00018897,2]
[352776797,1739304638771,-500.0,0.00018897,2]
[352776799,1739304638780,-641.94,0.00018897,2]
[352776801,1739304638790,-535.28,0.00018897,2]
[352776803,1739304638799,-587.8955173,0.00018897,2]
[352776804,1739304638808,-500.0,0.00018897,2]
[352776806,1739304638817,-500.0,0.00018897,2]
[352776808,1739304638826,-500.0,0.00018897,2]
[352776810,1739304638836,-500.0,0.00018897,2]
[352776812,1739304638846,-500.0,0.00018897,2]
[352776814,1739304638856,-500.0,0.00018897,2]
[352776816,1739304638867,-500.0,0.00018897,2]
[352776818,1739304638879,-500.0,0.00018897,2]
[352776820,1739304638888,-500.0,0.00018897,2]
[352776822,1739304638898,-161.20408657,0.00018898,2]
[352776825,1739304638910,-210.93304077,0.00018899,2]
[352776827,1739304638920,-185.39705834,0.000189,2]
[352776829,1739304638930,-151.67487877,0.000189,2]
[352776831,1739304638940,-325.82006708,0.00018903,14]
[352776833,1739304638951,-1681.21419,0.0001891,2]
[352776835,1739304638961,-150.0,0.0001893,2]
[352776837,1739304638971,-300.0,0.00018938,2]
[352776839,1739304638980,-255.65564208,0.00018941,2]
[352776841,1739304638989,-150.0,0.00018955,2]
[352776843,1739304638999,-500.0,0.00018973,2]
[352776845,1739304639009,-150.0,0.00018973,2]
[352776847,1739304639019,-1000.0,0.0001898,2]
[352776849,1739304639029,-150.0,0.00018983,2]
[352776851,1739304639038,-150.0,0.00018989,2]
[352776853,1739304639048,-929.1125539,0.00018996,2]
[352776855,1739304639057,-1980.8679625,0.00018996,2]
[352776857,1739304639067,-406.78502824,0.00018997,3]
[352776859,1739304639076,-128805.48866974,0.00018997,3]
[352776861,1739304639089,-2461.97053273,0.00018997,3]
[352776863,1739304639100,-1025.15144011,0.00018997,3]
[352776865,1739304639113,-3702.49200572,0.00018997,3]
[352776868,1739304639129,-518794.70617073,0.00018997,3]
[352776870,1739304639139,-500.0,0.00018998,2]
[352776872,1739304639149,-500.0,0.00018998,2]
[352776874,1739304639159,-500.0,0.00018998,2]
[352776876,1739304639168,-500.0,0.00018998,2]
[352776878,1739304639179,-500.0,0.00018998,2]
[352776880,1739304639188,-500.0,0.00018998,2]
[352776882,1739304639197,-500.0,0.00018998,2]